Cogmind - Beta 10.2 --- EXPLORER MODE // 2020.11.14 @ 22:11:37 // Halloween2020/ForbiddenLore Player: Chydax Result: Destroyed by P-80 Master with Gamma Rifle Performance ------------- Evolutions (7) 3500 Regions Visited (18) 3600 Robots Destroyed (358) 1790 Value Destroyed (14027) 14027 Prototype IDs (60) 1200 Alien Tech Used (0) 0 Bonus (3074) 3074 TOTAL SCORE: 27191 Bonus ------- High Alert Combat Kills 398 Follower Combat Kills 1435 Network Hubs Disabled 200 Met Data Miner 300 A7 Reached Mainframe 300 Met R17 at Cetus 500 Friendly Fire -59 Cogmind --------- Core Integrity 0/1300 Matter 64/300 Energy 91/100 System Corruption 31% Temperature Cool (0) Movement Core (550) Ox10 Location -3/Research Parts ------- > --- POWER (3) -------- (None) > --- PROPULSION (5) --- (None) > --- UTILITY (10) ----- High-capacity Storage Unit > --- WEAPON (4) ------- (None) > --- INVENTORY (12) --- Advanced Heat Sink Peak State ------------ > --- POWER ------------ Micro Fission Core Micro Fission Core Micro Fission Core > --- PROPULSION ------- Advanced Medium Treads Improved Heavy Treads Centrium Heavy Treads > --- UTILITY ---------- Advanced Cryofiber Web Improved Cooling System Coolant Network Large Storage Unit High-capacity Storage Unit Experimental Sensor Array Advanced Signal Interpreter Advanced Targeting Computer Advanced Hacking Suite > --- WEAPON ----------- High-powered Shock Rifle Proton Burst Cannon Matter Neutralizer Railgun > --- INVENTORY -------- Micro Fission Core Micro Fission Core Heavy Treads Myomer Leg Improved Gyrokinetic Inverter Advanced Heat Sink Advanced Heat Sink Advanced Sensor Array Improved Utility Shielding Light Regenerative Plating Improved Field Recycling Unit High-powered Shock Rifle Force Rifle HERF Cannon Micro-nuke Launcher [Rating: 141] Favorites ----------- Power Light Nuclear Core Engine Light Angular Momentum Engine Power Core Light Nuclear Core Reactor Light Antimatter Reactor Propulsion Armored Treads Treads Armored Treads Leg Aluminum Leg Hover Unit Improved Airjet Utility Large Storage Unit Device Experimental Sensor Array Storage Large Storage Unit Processor Advanced Signal Interpreter Hackware Advanced Hacking Suite Protection Improved Utility Shielding Weapon Advanced Beam Cannon Energy Gun Heavy Particle Gun Energy Cannon Advanced Beam Cannon Ballistic Gun Coil Gun Ballistic Cannon Antimatter Cannon Launcher Heavy Rocket Launcher Special Weapon Remote Datajack Impact Weapon Powered Hammer Slashing Weapon Power Sword Special Melee Weapon Advanced Datajack Build | -11 -10 -10 -9 -9 -8 -7 -7 -7 -7 -6 -6 -6 -6 -6 -6 -5 -4 -3 ------- Run | Scr Mat Min Mat Sto Mat Fac Low Low Dat Pro Fac Ext Cet Arc Hub Fac Fac Res Slots Evolved 15 | . 1 . 2 . 2 2 . . . . 2 . . . . 2 2 2 Power 2 | . . . . . . 1 . . . . . . . . . 1 . . Propulsion 3 | . . . 1 . . . . . . . 1 . . . . . 1 . Utility 8 | . 1 . 1 . 1 1 . . . . 1 . . . . 1 1 1 Weapon 2 | . . . . . 1 . . . . . . . . . . . . 1 Parts Attached 304 | 8 15 . 27 14 14 35 5 12 . 11 42 4 5 4 7 20 41 40 Power 56 | 1 3 . 4 . 5 8 . 2 . 3 5 . 1 1 3 6 9 5 Engine 17 | 1 1 . 4 . 2 3 . . . . 4 . 1 . . . 1 . Core 36 | . 2 . . . 3 5 . 2 . 3 1 . . 1 3 6 7 3 Reactor 3 | . . . . . . . . . . . . . . . . . 1 2 Propulsion 54 | 2 7 . 10 2 2 9 . . . . 4 1 2 . . 3 6 6 Treads 48 | . 5 . 10 2 2 7 . . . . 4 1 2 . . 3 6 6 Leg 4 | 2 2 . . . . . . . . . . . . . . . . . Wheel . | . . . . . . . . . . . . . . . . . . . Hover 2 | . . . . . . 2 . . . . . . . . . . . . Flight . | . . . . . . . . . . . . . . . . . . . Utility 89 | 2 4 . 6 3 2 5 5 8 . 8 23 . . . 1 2 11 9 Device 52 | . . . 4 2 1 2 3 6 . 6 17 . . . . . 7 4 Storage 10 | 1 3 . 1 1 . 1 . . . . 1 . . . . 1 1 . Processor 6 | . 1 . 1 . . . 1 . . . 1 . . . . 1 1 . Hackware 2 | . . . . . . 1 . . . . . . . . . . 1 . Protection 19 | 1 . . . . 1 1 1 2 . 2 4 . . . 1 . 1 5 Artifact . | . . . . . . . . . . . . . . . . . . . Weapon 105 | 3 1 . 7 9 5 13 . 2 . . 10 3 2 3 3 9 15 20 Energy Gun 38 | 1 1 . 4 4 1 2 . . . . 3 . 1 . . 5 8 8 Energy Cannon 26 | . . . . 2 2 6 . 2 . . 1 2 . 1 1 1 5 3 Ballistic Gun 25 | 2 . . 3 3 2 3 . . . . 2 1 . . 1 2 2 4 Ballistic Cannon 6 | . . . . . . . . . . . 4 . 1 1 . . . . Launcher 5 | . . . . . . . . . . . . . . . 1 1 . 3 Special Weapon 1 | . . . . . . 1 . . . . . . . . . . . . Impact Weapon 1 | . . . . . . 1 . . . . . . . . . . . . Slashing Weapon 2 | . . . . . . . . . . . . . . . . . . 2 Piercing Weapon . | . . . . . . . . . . . . . . . . . . . Special Melee Weapon 1 | . . . . . . . . . . . . . . 1 . . . . Unidentified Prototypes 21 | . . . 3 3 . 4 1 . . . 3 . 2 . 1 . 3 1 Parts Lost 48 | . . . 1 . . . . . . . 2 1 . 3 . 3 4 34 Power 10 | . . . 1 . . . . . . . 1 . . 1 . 1 1 5 Propulsion 4 | . . . . . . . . . . . . . . . . . . 4 Utility 14 | . . . . . . . . . . . . . . . . . 2 12 Weapon 20 | . . . . . . . . . . . 1 1 . 2 . 2 1 13 Highest Loss Streak 20 | . . . 1 . . . . . . . 1 1 . 2 . 3 2 20 Average Slot Usage (%) 95 | . 99 100 99 99 99 100 87 99 100 99 97 97 88 86 87 86 88 85 Engine 4 | . 2 . 9 10 2 5 14 . . . 5 12 12 6 5 . 3 . Core 7 | . 9 12 . . 5 8 . 13 14 14 5 . . 5 6 15 10 11 Treads 21 | . 22 25 29 30 24 21 21 21 21 21 24 25 13 12 12 10 14 12 Device 12 | . . . 19 19 16 14 8 13 14 13 14 12 12 12 12 11 12 12 Storage 9 | . 21 25 10 10 8 7 7 7 7 7 5 6 6 6 6 6 9 9 Processor 10 | . 12 12 10 10 8 7 7 14 14 14 12 12 12 12 12 14 10 8 Hackware 1 | . . . . . . 7 . . . . . . . . . . 4 3 Protection 6 | . 3 . . . 8 7 7 6 7 6 8 12 12 12 12 11 6 8 Energy Gun 5 | . 12 12 9 11 2 3 . . . . 5 2 5 6 5 4 6 4 Energy Cannon 7 | . . . . 3 13 12 14 20 21 21 6 6 6 . . 3 3 5 Ballistic Gun 4 | . 12 12 10 5 8 4 7 . . . 2 1 4 . . 3 3 3 Ballistic Cannon 1 | . . . . . . . . . . . 3 6 1 11 9 3 . . Naked Turns . | . . . . . . . . . . . . . . . . . . . Heaviest Build 120 | 16 27 27 47 52 55 66 62 57 50 55 62 67 67 64 61 104 113 120 Greatest Support 190 | 20 40 40 69 69 69 66 60 60 60 60 80 80 160 160 160 160 190 185 Greatest Overweight (x) 3 | 3 1 . . . . 1 1 . . . . . . . . . . 1 Average Overweight (x) . | . . . . . . . . . . . . . . . . . . . Largest Inventory Capacity 18 | 8 10 10 12 18 12 12 10 10 10 10 10 10 10 10 10 18 18 18 Average Capacity 11 | 7 9 10 11 12 12 11 10 10 10 10 9 10 10 10 10 11 17 18 Most Carried 18 | 8 10 10 12 12 12 12 10 10 6 10 10 10 10 9 10 10 18 18 Average Carried 9 | 5 9 9 10 11 11 10 8 7 6 6 8 9 8 8 8 7 15 12 Final Capacity 18 | 8 10 10 12 12 12 10 10 10 10 10 10 10 10 10 10 18 18 18 Final Carried 17 | 6 10 10 12 11 12 10 7 6 6 7 10 8 9 8 9 3 17 15 Class Distribution -------------------- 47% | Hacker-Skirmisher 27% | Hacker-Mutant 18% | Hacker-Gunner 3% | Generator-Skirmisher Dominant Class ---------------- Hacker-Mutant | -10/Materials Hacker-Mutant | -10/Mines Hacker-Mutant | -9/Materials Hacker-Mutant | -9/Storage Hacker-Gunner | -8/Materials Hacker-Gunner | -7/Factory Hacker-Gunner | -7/Lower Caves Hacker-Skirmisher | -7/Lower Caves Hacker-Skirmisher | -7/Data Miner Hacker-Skirmisher | -6/Proximity Caves Hacker-Skirmisher | -6/Factory Hacker-Skirmisher | -6/Extension Hacker-Skirmisher | -6/Cetus Scavenger-Skirmisher | -6/Archives Scavenger-Skirmisher | -6/Hub_04(d) Generator-Skirmisher | -5/Factory Hacker-Skirmisher | -4/Factory Hacker-Skirmisher | -3/Research Resources | -11 -10 -10 -9 -9 -8 -7 -7 -7 -7 -6 -6 -6 -6 -6 -6 -5 -4 -3 ----------- Run | Scr Mat Min Mat Sto Mat Fac Low Low Dat Pro Fac Ext Cet Arc Hub Fac Fac Res Matter Collected 7968 | 245 260 24 511 230 308 590 178 569 . 640 1183 150 285 101 355 856 910 573 Remotely . | . . . . . . . . . . . . . . . . . . . Salvage Created 16772 | . 343 138 1155 1252 1696 1581 135 140 . 384 1819 207 467 202 286 1834 2777 2356 Parts 839 | . 28 14 67 91 106 88 6 8 . 3 76 8 16 5 16 57 127 123 Haulers Intercepted 12 | . . . 2 2 5 1 . . . . 1 . . . . . . 1 Recyclers Shooed 9 | . 1 . . . 1 1 . . . . 2 . . . 1 1 1 1 Parts Field Recycled 53 | . . . . . . . . . . . 53 . . . . . . . Retrieved Matter 931 | . . . . . . . . . . . 931 . . . . . . . Parts Self-Destructed . | . . . . . . . . . . . . . . . . . . . Prevented . | . . . . . . . . . . . . . . . . . . . Kills | -11 -10 -10 -9 -9 -8 -7 -7 -7 -7 -6 -6 -6 -6 -6 -6 -5 -4 -3 ------- Run | Scr Mat Min Mat Sto Mat Fac Low Low Dat Pro Fac Ext Cet Arc Hub Fac Fac Res Combat Hostiles Destroyed 243 | . 8 4 18 22 23 24 3 4 . 4 31 4 8 4 6 29 20 31 Melee 2 | . . . . . . . . . . . . . . . . . . 2 Guns 112 | . 8 4 18 18 4 11 . . . . 13 . 2 3 3 8 10 10 Cannons 98 | . . . . 3 18 12 3 4 . 4 17 4 5 1 . 19 2 6 AOE 17 | . . . . 1 . 1 . . . . 1 . . . 3 1 1 9 Classes Destroyed 16 | . 4 . 4 1 2 3 . 2 . . . . . . . . . . Worker 28 | . . . . 2 6 1 . . . . 3 . . . 3 1 5 7 Builder 19 | . . . 1 2 3 1 . . . . 1 . . . 3 . 3 5 Tunneler 2 | . . . . . 1 . . . . . . . . . . . . 1 Hauler 12 | . . . 2 2 5 1 . . . . 1 . . . . . . 1 Recycler 15 | . 1 1 1 . 1 1 . . . . 1 . . . 1 1 6 1 Minesweeper 1 | . . . . . . . . 1 . . . . . . . . . . Operator 7 | . . . . . 1 1 . . . . 1 1 . 1 . . 1 1 Watcher 31 | . 3 . 4 1 5 3 . . . . 4 . 2 . . 2 5 2 Swarmer 40 | . 4 4 2 . 6 3 2 3 . . 5 . 2 . 3 2 . 4 Grunt 83 | . 4 . 6 13 10 7 . . . 4 6 1 1 . . 13 3 15 Brawler 3 | . . . . . . 1 . . . . . . . . . 2 . . Duelist 5 | . . . 1 . . . . . . . 1 1 1 . . . . 1 Sentry 55 | . . . 9 9 7 4 1 . . . 7 2 . 4 3 3 4 2 Hunter 15 | . . . . . . 2 . . . . 2 . . . . 1 6 4 Programmer 37 | . . . . . . 7 . . . . 10 . . . . 8 7 5 Cetus Guard 4 | . . . . . . . . . . . . . 4 . . . . . Thief 1 | . . . . . . . . 1 . . . . . . . . . . Best Kill Streak 11 | . 4 3 5 10 10 8 3 2 . 2 4 3 4 3 9 5 7 11 Combat Bots Only 7 | . 2 2 5 7 5 2 3 2 . 2 4 2 3 2 3 4 2 6 Max Kills in Single Turn 7 | . 2 1 1 2 2 2 1 1 . 1 2 1 1 1 3 2 2 7 Gunslinging 1 | . 1 . . . . . . . . . . . . . . . . . Exploded 2 | . . . . 1 . 1 . . . . 1 . . . 1 1 1 2 Melee 1 | . . . . . . . . . . . . . . . . . . 1 Uniques/NPCs Destroyed . | . . . . . . . . . . . . . . . . . . . Combat | -11 -10 -10 -9 -9 -8 -7 -7 -7 -7 -6 -6 -6 -6 -6 -6 -5 -4 -3 -------- Run | Scr Mat Min Mat Sto Mat Fac Low Low Dat Pro Fac Ext Cet Arc Hub Fac Fac Res Damage Taken 18035 | . 123 46 797 418 505 857 153 84 . 158 1062 892 440 334 984 2244 1854 7084 Core 3027 | . 29 18 80 76 64 122 7 16 . 26 77 20 57 18 101 804 206 1306 Absorbed by Shields 248 | . . . . . . . . . . . . 16 232 . . . . . Core Remaining (%) 71 | 100 . 81 . 61 88 . . . . 75 . . . . 67 19 82 . Volleys Fired 711 | . 25 8 82 53 56 70 5 11 . 9 94 15 29 17 18 75 82 62 Largest 4 | . 2 2 2 2 3 3 2 3 . 3 3 3 3 3 3 3 3 4 Hottest 300 | . 70 60 73 124 149 194 137 200 . 212 212 188 195 200 168 203 265 300 Shots Fired 1901 | . 49 16 159 106 168 195 10 30 . 27 274 38 74 44 53 214 229 215 Gun 1033 | . 49 16 159 85 81 80 1 . . . 117 5 31 15 18 84 162 130 Cannon 830 | . . . . 21 87 113 9 30 . 27 157 33 43 29 26 123 63 69 Launcher 36 | . . . . . . . . . . . . . . . 9 7 4 16 Special 2 | . . . . . . 2 . . . . . . . . . . . . Kinetic 649 | . 25 8 82 30 56 47 1 . . . 86 16 38 21 27 89 62 61 Thermal 651 | . 24 . 63 53 56 87 4 11 . 9 147 17 6 22 17 57 51 27 Explosive 36 | . . . . . . . . . . . . . . . 9 7 4 16 Electromagnetic 563 | . . 8 14 23 56 59 5 19 . 18 41 5 30 1 . 61 112 111 Robot Hit Streak 66 | . 18 11 30 40 59 29 8 14 . 36 55 35 48 11 37 66 37 55 Robot Miss Streak 3 | . 1 1 1 1 2 1 1 1 . . 3 1 3 2 1 1 2 2 Penetration Max 2 | . . . . . . 2 . . . . 1 . 1 . . 1 1 1 Secondary Targets 12 | . 2 1 4 2 . . . . . . . . . . . . 2 1 Max Gunslinging Chain 1 | . 1 1 1 1 . . . . . . . . . . . . 1 1 Shots Hit Robots 1546 | . 40 15 141 92 113 145 8 24 . 22 218 36 61 33 46 174 194 184 Core Hits 684 | . 20 6 45 43 58 60 4 7 . 9 81 14 20 13 30 74 82 118 Critical Hits 61 | . 1 . . 4 4 16 1 1 . 2 13 . 3 1 2 4 5 4 Critical Kills 17 | . 1 . . 3 2 4 1 . . 1 3 . 1 . . . 1 . Critical Parts Destroyed 40 | . . . . . 2 12 . 1 . 1 9 . 1 1 2 4 4 3 Melee Attacks 17 | . . . . . . . . . . . . . . . . . . 17 Impact . | . . . . . . . . . . . . . . . . . . . Slashing 17 | . . . . . . . . . . . . . . . . . . 17 Piercing . | . . . . . . . . . . . . . . . . . . . Sneak Attacks . | . . . . . . . . . . . . . . . . . . . Combat Hostiles . | . . . . . . . . . . . . . . . . . . . Follow-up Attacks . | . . . . . . . . . . . . . . . . . . . Damage Inflicted 41109 | . 473 200 1734 1463 2730 2924 159 503 . 652 5671 1025 1847 1038 1726 4761 5954 8249 Guns 16811 | . 472 200 1734 1118 894 1096 . . . . 2077 109 609 383 465 1499 3323 2832 Cannons 17703 | . . . . 302 1493 1631 159 472 . 612 3002 916 1238 655 575 2985 1939 1724 Explosions 6070 | . . . . 43 335 197 . 31 . 40 584 . . . 686 277 650 3227 Melee 452 | . . . . . . . . . . . . . . . . . . 452 Ramming 73 | . 1 . . . 8 . . . . . 8 . . . . . 42 14 Kinetic 11515 | . 248 106 868 404 480 356 . . . . 1939 515 894 503 570 1903 1340 1389 Thermal 13548 | . 224 . 685 694 1138 1716 62 174 . 161 3091 399 117 510 470 1540 1510 1057 Explosive 3918 | . . . . . . . . . . . . . . . 686 277 199 2756 Electromagnetic 11603 | . . 94 181 365 1104 852 97 329 . 491 633 111 836 25 . 1041 2863 2581 Impact . | . . . . . . . . . . . . . . . . . . . Slashing 452 | . . . . . . . . . . . . . . . . . . 452 Piercing . | . . . . . . . . . . . . . . . . . . . Highest Corruption 30 | . . . 2 2 . 3 3 3 3 3 5 5 5 5 10 . 11 30 Average Corruption 3 | . . . 2 2 . 1 3 3 3 3 2 5 5 5 5 . 7 8 Corruption Purged . | . . . . . . . . . . . . . . . . . . . Effects 454 | . . . 1 8 . 16 28 29 . 40 93 18 19 13 14 . 115 60 Message Errors 101 | . . . 1 2 . 9 6 8 . 11 22 6 2 1 2 . 19 12 Matter Fused 68 | . . . . . . . 9 6 . 11 9 4 6 2 2 . 17 2 Heat Flow Errors 59 | . . . . . . 1 5 2 . 4 18 2 1 1 3 . 18 4 Energy Discharges 61 | . . . . 2 . . 4 7 . 7 18 1 2 2 1 . 13 4 Parts Rejected 1 | . . . . . . . . . . . . . . . . . . 1 Data Loss (minor) 62 | . . . . 2 . 3 4 6 . 6 15 2 2 1 2 . 10 9 Data Loss (major) 17 | . . . . . . . . . . . 3 2 . 3 . . 8 1 Misfires 7 | . . . . . . . . . . . . . 2 . . . 4 1 Alerts 2 | . . . . . . . . . . . . . . . . . 2 . Misdirections 10 | . . . . . . . . . . . . . . . . . 8 2 Targeting Errors 54 | . . . . 2 . 3 . . . 1 5 1 4 1 3 . 15 19 Weapon Failures 12 | . . . . . . . . . . . 3 . . 2 1 . 1 5 Overload Shots . | . . . . . . . . . . . . . . . . . . . Overflow Damage 1067 | . . . . . 6 6 . . . 16 317 12 23 11 60 37 252 327 Projectiles 540 | . . . . . 5 6 . . . 16 140 12 23 11 52 37 226 12 Explosions 527 | . . . . . 1 . . . . . 177 . . . 8 . 26 315 Melee . | . . . . . . . . . . . . . . . . . . . Knockbacks 20 | . . . . . . . . . . . 8 1 . . 5 5 1 . Impact 1 | . . . . . . . . . . . . . . . . . 1 . Kinetic 19 | . . . . . . . . . . . 8 1 . . 5 5 . . Secondary . | . . . . . . . . . . . . . . . . . . . Self-Inflicted Damage 748 | . . . . . 48 . . . . 20 59 . . . 141 . 272 208 Shots 26 | . . . . . 2 . . . . 1 1 . . . 7 . 8 7 Rammed 12 | . 1 . . . 2 . . . . . 1 . . . . . 6 2 Targets Rammed 12 | . 1 . . . 2 . . . . . 1 . . . . . 6 2 Kicked . | . . . . . . . . . . . . . . . . . . . Crushed . | . . . . . . . . . . . . . . . . . . . Highest Temperature 697 | . 99 24 138 27 277 546 354 185 . 453 322 192 222 146 333 697 541 445 Average Temperature 117 | . 30 9 66 10 72 128 130 57 . 167 42 80 56 68 105 233 152 145 Received Heat Transfer 4102 | . 99 . 459 288 324 237 54 . . 75 162 237 106 90 153 393 156 1269 Effects 85 | . . . . . 1 12 2 . . 5 1 . . . . 51 11 2 Shutdowns 33 | . . . . . . 5 . . . 2 . . . . . 21 5 . Energy Bleed 13 | . . . . . 1 2 . . . . 1 . . . . 6 2 1 Interference 13 | . . . . . . 1 2 . . 3 . . . . . 5 1 1 Matter Decay 9 | . . . . . . 1 . . . . . . . . . 7 1 . Short Circuit 4 | . . . . . . 1 . . . . . . . . . 3 . . Damage (minor) 2 | . . . . . . . . . . . . . . . . . 2 . Damage (major) 6 | . . . . . . 2 . . . . . . . . . 4 . . Damage (core) 5 | . . . . . . . . . . . . . . . . 5 . . Siege Activations . | . . . . . . . . . . . . . . . . . . . Robots Corrupted 16 | . . . . . 1 . . . . . . . 1 . . 1 9 4 Combat Hostiles 14 | . . . . . 1 . . . . . . . 1 . . 1 7 4 Parts Fried 56 | . . . 1 . 2 . . 2 . 1 2 . 3 . . 1 29 15 Impact Corruptions . | . . . . . . . . . . . . . . . . . . . Robots Melted . | . . . . . . . . . . . . . . . . . . . Combat Hostiles . | . . . . . . . . . . . . . . . . . . . Parts Melted 23 | . 1 . 4 2 1 6 . . . . 7 . . . . . 2 . Heat Transferred 21259 | . 666 . 1988 1665 1843 2655 111 309 . 272 4753 722 148 731 574 1924 1945 953 Parts Sabotaged . | . . . . . . . . . . . . . . . . . . . Parts Stolen 1 | . . . . . . . . 1 . . . . . . . . . . Parts Stripped . | . . . . . . . . . . . . . . . . . . . Power Chain Reactions 20 | . . . . 1 5 4 . 1 . 1 4 . . . . . 2 2 Missiles Intercepted . | . . . . . . . . . . . . . . . . . . . Alert | -11 -10 -10 -9 -9 -8 -7 -7 -7 -7 -6 -6 -6 -6 -6 -6 -5 -4 -3 ------- Run | Scr Mat Min Mat Sto Mat Fac Low Low Dat Pro Fac Ext Cet Arc Hub Fac Fac Res Peak Influence 869 | . 248 55 224 440 541 264 . . . . 290 150 284 170 438 497 424 869 Initial 157 | . . . . . 133 . . . . . . . 63 39 . 157 23 25 Average 90 | . 35 8 66 192 228 63 . . . . 51 61 140 117 125 236 87 233 Maximum Alert Level 3 | . 1 . 1 2 2 1 . . . . 1 . 1 . 2 2 2 3 Low Security (%) 86 | 100 94 100 97 59 53 97 . . . . 96 100 77 100 76 36 82 54 Level 1 11 | . 5 . 2 33 39 2 . . . . 3 . 22 . 17 58 15 19 Level 2 1 | . . . . 6 6 . . . . . . . . . 5 4 1 17 Level 3 . | . . . . . . . . . . . . . . . . . . 8 Level 4 . | . . . . . . . . . . . . . . . . . . . Level 5 . | . . . . . . . . . . . . . . . . . . . High Security . | . . . . . . . . . . . . . . . . . . . Max Security . | . . . . . . . . . . . . . . . . . . . Squads Dispatched 63 | . 1 . 1 6 3 6 . . . . 19 . 1 . 3 6 6 11 Investigation 8 | . 1 . . . 1 . . . . . 3 . 1 . 1 . 1 . Extermination 23 | . . . . . . 5 . . . . 10 . . . . 2 3 3 Reinforcement 24 | . . . 1 5 2 1 . . . . 2 . . . 2 1 2 8 Assault . | . . . . . . . . . . . . . . . . . . . Garrison 8 | . . . . 1 . . . . . . 4 . . . . 3 . . Intercept . | . . . . . . . . . . . . . . . . . . . Construction Impeded 6 | . . . . . 1 . . . . . 1 . . . . . 1 3 Haulers Reinforced 6 | . . . . . . 1 . . . . . . . . 1 1 . 3 Stealth | -11 -10 -10 -9 -9 -8 -7 -7 -7 -7 -6 -6 -6 -6 -6 -6 -5 -4 -3 --------- Run | Scr Mat Min Mat Sto Mat Fac Low Low Dat Pro Fac Ext Cet Arc Hub Fac Fac Res Distress Signals 15 | . 1 . 5 1 1 2 . . . . . 2 2 . 1 . . . Communications Jammed . | . . . . . . . . . . . . . . . . . . . Distress Signals . | . . . . . . . . . . . . . . . . . . . Times Spotted 414 | . 14 5 30 27 35 38 3 5 . 11 61 11 18 6 23 33 32 62 Peak Tracking Total 14 | . 4 2 7 4 5 4 3 3 . 7 3 5 5 2 7 4 3 14 Tactical Retreats 39 | . 1 1 1 1 4 10 . 1 . 1 2 1 1 . 4 1 2 8 Traps | -11 -10 -10 -9 -9 -8 -7 -7 -7 -7 -6 -6 -6 -6 -6 -6 -5 -4 -3 ------- Run | Scr Mat Min Mat Sto Mat Fac Low Low Dat Pro Fac Ext Cet Arc Hub Fac Fac Res Traps Triggered 11 | . 2 . 2 3 . . . . . . . . . . 1 2 1 . Indirectly . | . . . . . . . . . . . . . . . . . . . Trap Hack Attempts . | . . . . . . . . . . . . . . . . . . . Triggered . | . . . . . . . . . . . . . . . . . . . Disarmed 8 | . . . 4 . . . . . . . 4 . . . . . . . Reprogrammed 18 | . . . 6 . . 6 . . . . . 6 . . . . . . Reused 2 | . . . . . . . . . . . . 2 . . . . . . Traps Extracted . | . . . . . . . . . . . . . . . . . . . Installed . | . . . . . . . . . . . . . . . . . . . Triggered 5 | . . . . . 1 1 . . . . 1 2 . . . . . . Machines | -11 -10 -10 -9 -9 -8 -7 -7 -7 -7 -6 -6 -6 -6 -6 -6 -5 -4 -3 ---------- Run | Scr Mat Min Mat Sto Mat Fac Low Low Dat Pro Fac Ext Cet Arc Hub Fac Fac Res Machines Disabled 32 | . . . . . 4 3 . . . . 7 . 2 3 3 1 8 1 Max in Single Turn 3 | . . . . . 1 1 . . . . 2 . 1 1 1 1 3 1 Garrison Access 7 | . . . . . . 2 . . . . 1 . . . . 2 2 . Network Hub 1 | . . . . . . . . . . . . . . . 1 . . . Machines Sabotaged . | . . . . . . . . . . . . . . . . . . . Garrisons Compromised . | . . . . . . . . . . . . . . . . . . . Overloaded Fab Kills . | . . . . . . . . . . . . . . . . . . . Fab Network Shutdowns . | . . . . . . . . . . . . . . . . . . . Hacking | -11 -10 -10 -9 -9 -8 -7 -7 -7 -7 -6 -6 -6 -6 -6 -6 -5 -4 -3 --------- Run | Scr Mat Min Mat Sto Mat Fac Low Low Dat Pro Fac Ext Cet Arc Hub Fac Fac Res Machines Accessed 109 | . 9 1 14 2 10 13 3 1 4 1 24 6 3 . 1 2 12 3 Terminals 64 | . 8 1 10 2 6 8 . . . 1 11 6 3 . 1 . 5 2 Fabricators 5 | . . . . . . 1 . . . . 4 . . . . . . . Repair Stations 12 | . . . 2 . 2 1 . . . . 4 . . . . . 2 1 Recycling Units 2 | . 1 . . . . . . . . . 1 . . . . . . . Scanalyzers 10 | . . . 2 . 2 1 . . . . 3 . . . . . 2 . Garrison Access 8 | . . . . . . 2 . . . . 1 . . . . 2 3 . Total Hacks 301 | . 12 2 43 5 34 32 13 1 27 3 50 13 11 . 2 5 42 6 Successful 233 | . 8 1 38 4 30 22 13 1 27 3 34 6 9 . 2 2 31 2 Failed 68 | . 4 1 5 1 4 10 . . . . 16 7 2 . . 3 11 4 Catastrophic 4 | . . . . . . . . . . . 1 1 1 . . . 1 . Database Lockouts . | . . . . . . . . . . . . . . . . . . . Manual 18 | . 1 . . 1 . . . . . 1 7 1 2 4 . . . 1 Terminals 146 | . 11 2 26 5 11 21 . . . 3 21 13 11 . 2 . 15 5 Fabricators 10 | . . . . . . 2 . . . . 8 . . . . . . . Repair Stations 41 | . . . 9 . 5 2 . . . . 9 . . . . . 15 1 Recycling Units 3 | . 1 . . . . . . . . . 2 . . . . . . . Scanalyzers 43 | . . . 8 . 18 2 . . . . 9 . . . . . 6 . Garrison Access 17 | . . . . . . 5 . . . . 1 . . . . 5 6 . Terminal Hacks 136 | . 7 1 22 4 9 12 13 1 27 3 9 5 9 . 2 . 10 2 Record 39 | . . . 5 . . . 11 . 11 3 . . 8 . . . . 1 Part Schematic 13 | . . . . 1 . 3 . . 7 . 1 . . . . . 1 . Robot Schematic 8 | . . . . . . 1 . . 6 . . . . . . . 1 . Robot Analysis 2 | . 1 . . . . 1 . . . . . . . . . . . . Prototype ID Bank 15 | . . . 1 1 2 1 . . 3 . 2 1 . . . . 3 1 Open Door 6 | . . . . 1 . . 2 1 . . 1 . 1 . . . . . Level Access Points 3 | . . 1 1 . . . . . . . . 1 . . . . . . Branch Access Points 3 | . 1 . . . 1 . . . . . . . . . . . 1 . Emergency Access Points 8 | . 2 . 2 . 3 . . . . . . . . . 1 . . . Terminal Index 1 | . 1 . . . . . . . . . . . . . . . . . Fabricator Index 1 | . . . . 1 . . . . . . . . . . . . . . Repair Station Index 3 | . . . 1 . 1 . . . . . . . . . . . 1 . Garrison Index 1 | . . . . . . 1 . . . . . . . . . . . . Alert Level 2 | . . . . . 1 . . . . . . . . . . . 1 . Locate Traps 13 | . 1 . 2 . 1 3 . . . . 4 1 . . 1 . . . Disarm Traps 2 | . . . 1 . . . . . . . 1 . . . . . . . Reprogram Traps 3 | . . . 1 . . 1 . . . . . 1 . . . . . . Dispatch Records 2 | . . . 2 . . . . . . . . . . . . . . . Maintenance Status 2 | . . . 2 . . . . . . . . . . . . . . . Surveillance Status 1 | . . . 1 . . . . . . . . . . . . . . . Patrol Status 1 | . . . . . . 1 . . . . . . . . . . . . Recall Investigation 1 | . . . . . . . . . . . . . . . . . 1 . Recall Reinforcements 1 | . . . . . . . . . . . . . . . . . 1 . Zone Layout 5 | . 1 . 3 . . . . . . . . 1 . . . . . . Fabricator Hacks 9 | . . . . . . 2 . . . . 7 . . . . . . . Load Schematic 4 | . . . . . . 1 . . . . 3 . . . . . . . Build 5 | . . . . . . 1 . . . . 4 . . . . . . . Repair Station Hacks 35 | . . . 8 . 3 2 . . . . 8 . . . . . 14 . Scan Component 18 | . . . 4 . 2 1 . . . . 4 . . . . . 7 . Repair 17 | . . . 4 . 1 1 . . . . 4 . . . . . 7 . Recycling Unit Hacks . | . . . . . . . . . . . . . . . . . . . Scanalyzer 41 | . . . 8 . 18 2 . . . . 8 . . . . . 5 . Insert Component 21 | . . . 4 . 9 1 . . . . 4 . . . . . 3 . Analyze 20 | . . . 4 . 9 1 . . . . 4 . . . . . 2 . Garrison Access Hacks 9 | . . . . . . 4 . . . . 1 . . . . 2 2 . Seal Access 7 | . . . . . . 2 . . . . 1 . . . . 2 2 . Coupler Status 2 | . . . . . . 2 . . . . . . . . . . . . Unauthorized Hacks 3 | . 1 . . . . . . . . . 1 1 . . . . . . Terminals 1 | . . . . . . . . . . . . 1 . . . . . . Assimilate 1 | . . . . . . . . . . . . 1 . . . . . . Fabricators . | . . . . . . . . . . . . . . . . . . . Repair Stations . | . . . . . . . . . . . . . . . . . . . Recycling Units 2 | . 1 . . . . . . . . . 1 . . . . . . . Tunnel 2 | . 1 . . . . . . . . . 1 . . . . . . . Scanalyzers . | . . . . . . . . . . . . . . . . . . . Garrison Access . | . . . . . . . . . . . . . . . . . . . Data Cores Recovered 3 | . . . . . . 1 . . . . 1 1 . . . . . . Used . | . . . . . . . . . . . . . . . . . . . Hacking Detections 65 | . 3 1 10 2 4 8 . . . . 19 4 1 . 1 1 8 3 Full Trace Events 5 | . . . . . 1 . . . . . 2 . 1 . . . 1 . Feedback Events 1 | . . . . . . . . . . . . . . . . . 1 . Corruption 1 | . . . . . . . . . . . . . . . . . 1 . Feedback Blocked . | . . . . . . . . . . . . . . . . . . . Robot Schematics Acquired 8 | . . . . . . 1 . . 6 . . . . . . . 1 . Robots Built 2 | . . . . . . . . . . . 2 . . . . . . . Matter 252 | . . . . . . . . . . . 252 . . . . . . . Time 134 | . . . . . . . . . . . 134 . . . . . . . Total Robot Build Rating 8 | . . . . . . . . . . . 8 . . . . . . . Part Schematics Acquired 31 | . . . 3 1 8 4 . . 7 . 5 . . . . . 3 . Parts Built 6 | . . . . . . 2 . . . . 4 . . . . . . . Matter 807 | . . . . . . 190 . . . . 617 . . . . . . . Time 196 | . . . . . . 47 . . . . 149 . . . . . . . Total Part Build Rating 23 | . . . . . . 10 . . . . 13 . . . . . . . Parts Repaired 16 | . . . 4 . 1 1 . . . . 4 . . . . . 6 . Time 771 | . . . 170 . 32 16 . . . . 156 . . . . . 397 . Parts Recycled . | . . . . . . . . . . . . . . . . . . . Recycled Matter . | . . . . . . . . . . . . . . . . . . . Retrieved Matter . | . . . . . . . . . . . . . . . . . . . Retrieved Components . | . . . . . . . . . . . . . . . . . . . Parts Scanalyzed 19 | . . . 4 . 7 1 . . . . 4 . . . . . 3 . Part Schematics Acquired 18 | . . . 3 . 8 1 . . . . 4 . . . . . 2 . Parts Damaged . | . . . . . . . . . . . . . . . . . . . Bothacking | -11 -10 -10 -9 -9 -8 -7 -7 -7 -7 -6 -6 -6 -6 -6 -6 -5 -4 -3 ------------ Run | Scr Mat Min Mat Sto Mat Fac Low Low Dat Pro Fac Ext Cet Arc Hub Fac Fac Res Used RIF Installer . | . . . . . . . . . . . . . . . . . . . Robots Hacked 1 | . . . . . . 1 . . . . . . . . . . . . Non-combat . | . . . . . . . . . . . . . . . . . . . Combat 1 | . . . . . . 1 . . . . . . . . . . . . Robot Hacks Applied 2 | . . . . . . 2 . . . . . . . . . . . . parse_system 2 | . . . . . . 2 . . . . . . . . . . . . Relay Couplers Released 12 | . . . . . . 8 . . . . . . . . . . 4 . Programmers 12 | . . . . . . 8 . . . . . . . . . . 4 . Robots Rewired . | . . . . . . . . . . . . . . . . . . . Allies Hacked . | . . . . . . . . . . . . . . . . . . . Hacks Repelled . | . . . . . . . . . . . . . . . . . . . Allies | -11 -10 -10 -9 -9 -8 -7 -7 -7 -7 -6 -6 -6 -6 -6 -6 -5 -4 -3 -------- Run | Scr Mat Min Mat Sto Mat Fac Low Low Dat Pro Fac Ext Cet Arc Hub Fac Fac Res Total Allies 11 | . . . . . . 3 . . . 1 3 4 . . . . . . Largest Group 3 | . . . . . . 3 . . . 1 2 3 3 1 . . . . Highest-Rated Group 218 | . . . . . . 93 . . . 94 99 218 218 156 . . . . Highest-Rated Ally 156 | . . . . . . 31 . . . 94 99 156 156 156 . . . . Total Orders 14 | . . . . 14 . . . . . . . . . . . . . . ROAM 2 | . . . . 2 . . . . . . . . . . . . . . FOLLOW 2 | . . . . 2 . . . . . . . . . . . . . . EXPLORE 5 | . . . . 5 . . . . . . . . . . . . . . RETURN 5 | . . . . 5 . . . . . . . . . . . . . . Ally Attacks 141 | . . . . . . 15 . . . 22 53 4 47 . . . . . Total Damage 5395 | . . . . . . 249 . . . 837 2790 125 1394 . . . . . Kills 36 | . . . . . . 2 . . . 6 19 1 8 . . . . . Allies Corrupted 1 | . . . . . . . . . . . 1 . . . . . . . Allies Melted . | . . . . . . . . . . . . . . . . . . . Intel | -11 -10 -10 -9 -9 -8 -7 -7 -7 -7 -6 -6 -6 -6 -6 -6 -5 -4 -3 ------- Run | Scr Mat Min Mat Sto Mat Fac Low Low Dat Pro Fac Ext Cet Arc Hub Fac Fac Res Robot Analysis Total 2 | . 1 . . . . 1 . . . . . . . . . . . . Derelict Logs Recovered 5 | . . 1 . . . . 1 1 . 2 . . . . . . . . Drone Launches 8 | . . . . 8 . . . . . . . . . . . . . . Drone Recoveries 8 | . . . . 8 . . . . . . . . . . . . . . Exploration | -11 -10 -10 -9 -9 -8 -7 -7 -7 -7 -6 -6 -6 -6 -6 -6 -5 -4 -3 ------------- Run | Scr Mat Min Mat Sto Mat Fac Low Low Dat Pro Fac Ext Cet Arc Hub Fac Fac Res Turns Passed 34060 | 96 1899 2034 2541 662 1621 3335 2284 2322 157 2124 6902 778 590 506 394 1304 3180 1331 Spaces Moved 17254 | 51 1076 1194 1216 258 796 1737 1201 1308 93 1172 3421 421 300 279 131 579 1448 573 Core 24 | 24 . . . . . . . . . . . . . . . . . . Treads 17110 | . 983 1194 1216 258 796 1737 1201 1308 93 1172 3421 421 300 279 131 579 1448 573 Legs 120 | 27 93 . . . . . . . . . . . . . . . . . Wheels . | . . . . . . . . . . . . . . . . . . . Hover . | . . . . . . . . . . . . . . . . . . . Flight . | . . . . . . . . . . . . . . . . . . . Fastest Speed 50 | 50 120 160 160 160 160 163 170 170 170 170 170 170 160 160 160 160 155 145 Average Speed 165 | 122 156 160 160 160 161 169 186 170 170 170 170 170 160 160 160 160 155 150 Slowest Speed 200 | 200 180 160 160 160 163 190 190 170 170 170 170 170 170 160 160 160 160 165 Overloaded Moves . | . . . . . . . . . . . . . . . . . . . Propulsion Burnouts . | . . . . . . . . . . . . . . . . . . . Robots Hopped . | . . . . . . . . . . . . . . . . . . . Cave-ins Triggered . | . . . . . . . . . . . . . . . . . . . Exploration Rate (%) 66 | 4 100 101 96 63 75 43 99 99 72 97 69 71 86 99 22 13 31 14 Regions Visited 18 Branch Regions 10 Pre-discovered Areas 6 | . 1 2 . . . . . . 1 1 1 . . . . . . . Known Exits Taken 18 | 1 1 1 1 1 1 1 1 1 1 1 1 1 1 1 1 1 1 . Unknown Exits Taken . | . . . . . . . . . . . . . . . . . . . Scrap Searched 10 | . . 1 . . . . 2 2 . 5 . . . . . . . . Spaces Dug 6 | . . . . . . . . . . . . . . . . . . 6 Terrain Destroyed 481 | . . . . 5 27 10 . 3 . 3 52 1 2 4 62 51 86 175 Melee 6 | . . . . . . . . . . . . . . . . . . 6 Projectile 58 | . . . . . . 1 . . . . 12 1 2 4 4 12 5 17 AOE 417 | . . . . 5 27 9 . 3 . 3 40 . . . 58 39 81 152 Terrain Rammed . | . . . . . . . . . . . . . . . . . . . Walls Destroyed . | . . . . . . . . . . . . . . . . . . . Machines Disabled . | . . . . . . . . . . . . . . . . . . . Actions | -11 -10 -10 -9 -9 -8 -7 -7 -7 -7 -6 -6 -6 -6 -6 -6 -5 -4 -3 --------- Run | Scr Mat Min Mat Sto Mat Fac Low Low Dat Pro Fac Ext Cet Arc Hub Fac Fac Res Total 21224 | 83 1247 1303 1655 400 1016 1989 1244 1387 92 1287 4304 451 349 301 276 791 2196 853 Wait 2496 | 13 88 98 289 59 122 96 17 41 . 86 686 11 1 . 109 104 545 131 Move 17236 | 50 1075 1193 1215 257 795 1736 1200 1307 92 1171 3420 420 299 278 130 578 1447 573 Hop . | . . . . . . . . . . . . . . . . . . . Pick Up 213 | 12 22 2 19 8 13 20 5 4 . 1 26 . 6 2 5 7 49 12 Fast Attach 37 | 1 4 . 5 2 4 3 . . . . 6 . . . 1 1 6 4 Attach 111 | 6 5 . 3 1 4 3 5 9 . 8 22 1 2 3 . 8 8 23 Detach 39 | . . . . . . . 3 8 . 8 17 . . . . . . 3 Swap 156 | 1 6 . 19 11 6 29 . 3 . 3 14 3 3 1 6 11 27 13 Drop 196 | . 21 2 23 9 14 32 9 4 . 1 18 1 9 . 7 7 26 13 Fire 711 | . 25 8 82 53 56 70 5 11 . 9 94 15 29 17 18 75 82 62 Melee 17 | . . . . . . . . . . . . . . . . . . 17 Ram 1 | . . . . . . . . . . . . . . . . . . 1 Kick . | . . . . . . . . . . . . . . . . . . . Crush 11 | . 1 . . . 2 . . . . . 1 . . . . . 6 1 Escape Stasis . | . . . . . . . . . . . . . . . . . . . Rewire . | . . . . . . . . . . . . . . . . . . . Trap . | . . . . . . . . . . . . . . . . . . . Miscellaneous . | . . . . . . . . . . . . . . . . . . . Route ------- -11/Scrapyard -10/Materials (discovered 4 exits: *Mat x3 / *Min) -10/Mines (discovered 2 exits: *Mat x2) -9/Materials (discovered 6 exits: *Mat x3 / *Min x2 / *Sto) -9/Storage -8/Materials -7/Factory (discovered 3 exits: *Fac x2 / *Low) -7/Lower Caves -7/Lower Caves (discovered 2 exits: *Fac / *Dat) -7/Data Miner -6/Proximity Caves -6/Factory (discovered 8 exits: *Fac x4 / *Low x2 / *Ext x2) -6/Extension (discovered 3 exits: *Fac x2 / *Cet) -6/Cetus (discovered 3 exits: *Fac x2 / *Arc) -6/Archives (discovered 3 exits: *Fac / *Hub x2) -6/Hub_04(d) -5/Factory -4/Factory (discovered 3 exits: *Res / Upp x2) -3/Research (discovered 2 exits: Res x2) History --------- Turn | Location | Event 16 | -11/Scrapyard | Identified exit to Materials 16 | -11/Scrapyard | Discovered exit to Materials (range 15) 97 | -11/Scrapyard | Entered Materials 97 | -10/Materials | Evolved 1 slot: Utility x1 274 | -10/Materials | Identified exit to Mines 314 | -10/Materials | Build established: Hacker-Mutant 871 | -10/Materials | Identified exit to Materials 871 | -10/Materials | Discovered exit to Materials (range 16) 1115 | -10/Materials | Discovered exit to Materials (range 15) 1934 | -10/Materials | Discovered exit to Materials (range 15) 1996 | -10/Materials | Entered Mines 2003 | -10/Mines | Received a Rocket Launcher from a helpful Derelict 2184 | -10/Mines | Discovered exit to Materials (range 9) 2838 | -10/Mines | Found a damaged Exp. Sensor Array with a note attached 2842 | -10/Mines | Found Prototype Device 2864 | -10/Mines | Discovered exit to Materials (range 7) 2932 | -10/Mines | Learned location of Storage (-9) 4030 | -10/Mines | Entered Materials 4030 | -9/Materials | Evolved 2 slots: Propulsion x1, Utility x1 4031 | -9/Materials | Identified Exp. Sensor Array 4472 | -9/Materials | Identified exit to Mines 4472 | -9/Materials | Discovered exit to Mines (range 16) 4628 | -9/Materials | Identified exit to Materials 4693 | -9/Materials | Identified exit to Storage 4693 | -9/Materials | Discovered exit to Storage (range 16) 4772 | -9/Materials | Repaired Med. Laser 4799 | -9/Materials | Repaired Lgt. Treads 5874 | -9/Materials | Repaired Imp. Heat Sink 5956 | -9/Materials | Repaired Exp. Sensor Array 6140 | -9/Materials | Discovered exit to Mines (range 9) 6571 | -9/Materials | Entered Storage 7137 | -9/Storage | Garrison activated, responded to threat 7179 | -9/Storage | Destroyed 7 combat bots 7225 | -9/Storage | Discovered exit to Materials (range 5) 7233 | -9/Storage | Entered Materials 7233 | -8/Materials | Evolved 2 slots: Utility x1, Weapon x1 7537 | -8/Materials | Build established: Hacker-Gunner 7691 | -8/Materials | Identified exit to Factory 7691 | -8/Materials | Discovered exit to Factory (range 8) 7760 | -8/Materials | Repaired Imp. Treads 8854 | -8/Materials | Entered Factory 8854 | -7/Factory | Evolved 2 slots: Power x1, Utility x1 9160 | -7/Factory | Identified exit to Lower Caves 9160 | -7/Factory | Discovered exit to Lower Caves (range 12) 9680 | -7/Factory | Repaired Imp. Treads 10125 | -7/Factory | Identified exit to Factory 10125 | -7/Factory | Discovered exit to Factory (range 16) 10639 | -7/Factory | Fabricated Hyp. Gauss Rifle (x2) 10868 | -7/Factory | Discovered exit to Factory (range 9) 11068 | -7/Factory | Build established: Hacker-Mutant 11718 | -7/Factory | Build established: Hacker-Gunner 12189 | -7/Factory | Entered Lower Caves 12388 | -7/Lower Caves | Found Prototype Device 12392 | -7/Lower Caves | Identified Heart of Steel 12629 | -7/Lower Caves | Learned 8 Factory zone layouts 13096 | -7/Lower Caves | Learned location of 1 exit from Research 13096 | -7/Lower Caves | Learned Factory trap positions 13096 | -7/Lower Caves | Learned Extension emergency access door positions 13096 | -7/Lower Caves | Learned Factory stockpile data 13096 | -7/Lower Caves | Learned Extension terminal intel 13096 | -7/Lower Caves | Learned Armory terminal intel 13096 | -7/Lower Caves | Learned Research garrison access intel 13096 | -7/Lower Caves | Learned Armory garrison access intel 13252 | -7/Lower Caves | Identified exit to Lower Caves 13252 | -7/Lower Caves | Discovered exit to Lower Caves (range 9) 13830 | -7/Lower Caves | Attracted the attention of an 0b10 checkpoint 13901 | -7/Lower Caves | Encountered a Warlord checkpoint 14086 | -7/Lower Caves | Build established: Hacker-Mutant 14473 | -7/Lower Caves | Entered another Lower Caves area 14541 | -7/Lower Caves | Encountered a Warlord checkpoint 14541 | -7/Lower Caves | Discovered exit to Factory (range 16) 14812 | -7/Lower Caves | Build established: Hacker-Skirmisher 14960 | -7/Lower Caves | Learned Factory stockpile data 15221 | -7/Lower Caves | Identified exit to Data Miner 15221 | -7/Lower Caves | Discovered exit to Data Miner (range 6) 16511 | -7/Lower Caves | EM Pulse Cannon stolen by Master Thief 16795 | -7/Lower Caves | Entered Data Miner 16795 | -7/Data Miner | Identified exit to Proximity Caves 16795 | -7/Data Miner | Discovered exit to Proximity Caves (range 6) 16828 | -7/Data Miner | Met Data Miner 16874 | -7/Data Miner | Learned location of Section 7 (-3) 16874 | -7/Data Miner | Acquired the access code to Warlord's prototype stash 16908 | -7/Data Miner | Received God Mode back door access code from Data Miner 16952 | -7/Data Miner | Entered Proximity Caves 17122 | -6/Proximity Caves | Learned 4 Factory zone layouts 17175 | -6/Proximity Caves | Escorted by Enhanced Grunt 17175 | -6/Proximity Caves | Attracted the attention of an 0b10 checkpoint 17765 | -6/Proximity Caves | Discovered exit to Factory (range 7) 17949 | -6/Proximity Caves | Learned Factory terminal intel 18640 | -6/Proximity Caves | Attracted the attention of an 0b10 base 18762 | -6/Proximity Caves | Spotted B-75 Beast 18772 | -6/Proximity Caves | Learned location of Extension (-6) 18772 | -6/Proximity Caves | Learned location of 2 exits from Lower Caves 18772 | -6/Proximity Caves | Learned location of 1 exit from Research 19076 | -6/Proximity Caves | Entered Factory 19076 | -6/Factory | Evolved 2 slots: Propulsion x1, Utility x1 19077 | -6/Factory | Identified exit to Extension 19077 | -6/Factory | Identified exit to Factory 19077 | -6/Factory | Identified exit to Lower Caves 19078 | -6/Factory | Loaded intel: 109 trap records 19080 | -6/Factory | Loaded intel: 22 terminal locations 20100 | -6/Factory | Fabricated Arm. Treads (x2) 20331 | -6/Factory | Repaired Lrg. Storage Unit 20576 | -6/Factory | Incoming investigation squad redirected 20629 | -6/Factory | Repaired Adv. Beam Cannon 21226 | -6/Factory | Heart of Steel transformed into Warbot 21630 | -6/Factory | Discovered exit to Extension (range 6) 21724 | -6/Factory | Discovered exit to Factory (range 15) 22518 | -6/Factory | Discovered exit to Factory (range 16) 22799 | -6/Factory | Repaired Exp. Sensor Array 23090 | -6/Factory | Fabricated Lgt. Regenerative Plating (x1) 23283 | -6/Factory | Fabricated Cld. Ion Engine (x1) 23393 | -6/Factory | Repaired Imp. Utility Shielding 24678 | -6/Factory | Fabricated Y-54 Guardian (x2) 25381 | -6/Factory | Garrison activated, responded to threat 25505 | -6/Factory | Garrison activated, responded to threat 25978 | -6/Factory | Entered Extension 25980 | -6/Extension | Loaded intel: 12 terminal locations 26217 | -6/Extension | Rescued a captive Derelict 26273 | -6/Extension | Spotted B-75 Beast 26281 | -6/Extension | Spotted B-75 Beast 26501 | -6/Extension | Rescued A7 26667 | -6/Extension | Rescued a captive Derelict 26668 | -6/Extension | Rescued a captive Derelict 26746 | -6/Extension | Identified exit to Cetus 26746 | -6/Extension | Discovered exit to Cetus (range 6) 26756 | -6/Extension | Entered Cetus 26756 | -6/Cetus | Accompanied by 3 allies (A7) 26761 | -6/Cetus | Acquired a Cetus Manufacturing Module code from A7 26779 | -6/Cetus | Spotted Cetus Guard 26779 | -6/Cetus | Spotted Cetus Guard 26781 | -6/Cetus | Spotted Cetus Guard 26784 | -6/Cetus | Spotted Cetus Guard 26785 | -6/Cetus | Destroyed Cetus Guard 26796 | -6/Cetus | Allies destroyed Cetus Guard 26803 | -6/Cetus | Destroyed Cetus Guard 26806 | -6/Cetus | Destroyed Cetus Guard 26927 | -6/Cetus | Escorted A7 to Cetus Mainframe 27048 | -6/Cetus | Discovered exit to Factory (range 15) 27108 | -6/Cetus | Cetus Manufacturing Module disabled 27141 | -6/Cetus | Failed to start Cetus Manufacturing Module 27181 | -6/Cetus | Identified exit to Archives 27181 | -6/Cetus | Discovered exit to Archives (range 15) 27214 | -6/Cetus | Spotted Cetus Guard 27215 | -6/Cetus | Spotted Cetus Guard 27218 | -6/Cetus | Spotted Cetus Guard 27224 | -6/Cetus | Allies destroyed Cetus Guard 27227 | -6/Cetus | Allies destroyed Cetus Guard 27227 | -6/Cetus | Spotted Cetus Guard 27235 | -6/Cetus | Allies destroyed Cetus Guard 27244 | -6/Cetus | Destroyed Cetus Guard 27257 | -6/Cetus | Discovered exit to Factory (range 16) 27267 | -6/Cetus | Met Revision 17 27346 | -6/Cetus | Entered Archives 27346 | -6/Archives | Accompanied by 1 ally (A7) 27351 | -6/Archives | Received a hacking code to weaken MAIN.C 27471 | -6/Archives | Unable to access archive contents 27477 | -6/Archives | Identified exit to Hub_04(d) 27477 | -6/Archives | Discovered exit to Hub_04(d) (range 13) 27521 | -6/Archives | Discovered exit to Hub_04(d) (range 15) 27589 | -6/Archives | Unable to access archive contents 27605 | -6/Archives | Unable to access archive contents 27621 | -6/Archives | Unable to access archive contents 27639 | -6/Archives | Discovered exit to Factory (range 16) 27666 | -6/Archives | Unable to access archive contents 27711 | -6/Archives | Build established: Scavenger-Skirmisher 27852 | -6/Archives | Entered Hub_04(d) 27926 | -6/Hub_04(d) | Incoming investigation squad redirected 28162 | -6/Hub_04(d) | Network Hub disabled 28162 | -6/Hub_04(d) | Discovered exit to Factory (range 8) 28212 | -6/Hub_04(d) | Spotted Lightning 28216 | -6/Hub_04(d) | Spotted Lightning 28220 | -6/Hub_04(d) | Spotted Lightning 28232 | -6/Hub_04(d) | System corruption reached 10% 28246 | -6/Hub_04(d) | Entered Factory 28246 | -5/Factory | Evolved 2 slots: Power x1, Utility x1 28546 | -5/Factory | Build established: Generator-Skirmisher 28804 | -5/Factory | Identified exit to Factory 28804 | -5/Factory | Discovered exit to Factory (range 20) 28979 | -5/Factory | Garrison activated, responded to threat 29055 | -5/Factory | Core integrity fell below 50% 29091 | -5/Factory | Lost 3 parts (1p2w) 29461 | -5/Factory | Core integrity fell below 20% 29550 | -5/Factory | Entered another Factory area 29550 | -4/Factory | Evolved 2 slots: Propulsion x1, Utility x1 29941 | -4/Factory | Build established: Hacker-Skirmisher 31072 | -4/Factory | Repaired Exp. Sensor Array 31117 | -4/Factory | Repaired Imp. Cooling System 31227 | -4/Factory | Repaired Centrium Heavy Treads 31290 | -4/Factory | Repaired HERF Cannon 31988 | -4/Factory | System corruption reached 10% 32133 | -4/Factory | Repaired Lrg. Storage Unit 32192 | -4/Factory | Repaired Exp. Sensor Array 32337 | -4/Factory | Identified exit to Upper Caves 32633 | -4/Factory | Identified exit to Research 32633 | -4/Factory | Discovered exit to Research (range 4) 32730 | -4/Factory | Entered Research 32730 | -3/Research | Evolved 2 slots: Utility x1, Weapon x1 32731 | -3/Research | Identified exit to Research 32732 | -3/Research | Loaded intel: 3 garrison access locations 33112 | -3/Research | Found Unknown Protection 33118 | -3/Research | Found Unknown Protection 33118 | -3/Research | Identified Imp. Powered Armor (x2) 33367 | -3/Research | System corruption reached 10% 33620 | -3/Research | Lost 3 parts (1p2w) 33898 | -3/Research | Spotted B-86 Titan 33981 | -3/Research | Lost 7 parts (1n2u4w) 34038 | -3/Research | Core integrity fell below 50% 34053 | -3/Research | Core integrity fell below 20% 34060 | -3/Research | System corruption reached 30% 34061 | -3/Research | Destroyed by P-80 Master with Gamma Rifle Last Messages --------------- 34032_ Exp. Sensor Array destroyed. 34036_ P-80 Master resets B-86 Titan, system corruption cleaned. 34037_ System corrupted: Energy discharge (-13). 34037_ Penetrated by Slug. 34037_ Adv. Signal Interpreter destroyed. 34040_ B-86 Titan exits siege mode. 34042_ Knocked back. 34043_ P-80 Master resets P-80 Master, system corruption cleaned. 34046_ Adv. Targeting Computer destroyed. 34046_ Adv. Heat Sink destroyed. 34047_ B-86 Titan activates siege mode. 34047_ Adv. Cryofiber Web destroyed. 34053_ Adv. Hacking Suite destroyed. 34056_ P-80 Master resets P-80 Master, system corruption cleaned. 34058_ System corrupted: Component data lost. 34058_ Imp. Field Recycling Unit destroyed. 34061_ Lrg. Storage Unit destroyed. [Achievement: 20k Club] [Achievement: Just Browsing] [Achievement: Achiever] Map ----- +----------------------------------------------------+ | ?????????????????????????????????????????????????? | | ?????????????????????????????????????????????????? | | ?????????????????????????????????????????????????? | | ?????????????????????????????????????????????????? | | ?????????????????????????????????????????????????? | | ?????????????????????????????????????????????????? | | ?????????????????????????????????????????????????? | | ?????????????????????????????????????????????????? | | ?????????????????????????????????????????????????? | | ???????????????????????????????????????????? ??? | | ???????????????????????????????????????????? #?? | | ???????????????????????????????????????????? #?? | | ???????????????????????????????????????????? #?? | | ???????????????????????????????????????????# #?? | | ????????????????????????????########+####### #?# | | ????????????????????????????? # ## | | ??????????????????????????????# | | ????????????????#######???????# # = | | ???????????????## #####???????# "# | | ???????????????# ;;;######### "# | | ???????????????? ; # ^^ ""# = | | ?????????????????# # # # # | | ??????????????????#; g BBg =# ## | | ??????????????????## pppBBgg #"#" #### | | ???????????????????# pp = + | | ???????????????????# @# #"####+########+"### | | ???????????????????####;####"####? ???# # | | ??????????????????????##?? ?# #??# # | | ?????????????????????????# # ! = #??# # | | ?????????????????????????# # #??# # | | ?????????????????????????# = # #??# # | | ?????????????????????????# # #??# # | | ?????????????????????????# ########??######## | | ?????????????????????????########????????????????? | | ?????????????????????????????????????????????????? | | ?????????????????????????????????????????????????? | | ?????????????????????????????????????????????????? | | ?????????????????????????????????????????????????? | | ?????????????????????????????????????????????????? | | ?????????????????????????????????????????????????? | | ?????????????????????????????????????????????????? | | ?????????????????????????????????????????????????? | | ?????????????????????????????????????????????????? | | ?????????????????????????????????????????????????? | | ?????????????????????????????????????????????????? | | ?????????????????????????????????????????????????? | | ?????????????????????????????????????????????????? | | ??????????????????????????????????????????????##+# | | ??????????????????????????????????????????????# | | ??????????????????????????????????????????????# | +----------------------------------------------------+ Best States ------------- Heat Dissipation 73 Energy Generation 47 Energy Capacity 735 Matter Stores 300 Matter Capacity 300 Sight Range 22 Robot Scan Range 30 Terrain Scan Density 10 Jamming Range 12 Base Temperature (-) 200 Armor Coverage 550 Resistance: KI 35 Resistance: TH 35 Resistance: EX 35 Resistance: EM 35 Resistance: I 35 Resistance: S 35 Resistance: P 35 Utility Shielding 66 Evasion (%) 50 Targeting Accuracy 8 Recoil Reduction 5 Offensive Hacking 34 Item Schematics ----------------- Lgt. Treads | -9/Materials | Scanalyzed Hvy. EM Pulse Gun | -9/Materials | Scanalyzed Imp. Sensor Array | -9/Materials | Scanalyzed Rocket Launcher | -9/Storage | Hacked Adv. Beam Cannon | -8/Materials | Scanalyzed Imp. Heat Sink | -8/Materials | Scanalyzed Cld. Ion Engine | -8/Materials | Scanalyzed Lrg. Storage Unit | -8/Materials | Scanalyzed Hvy. Particle Cannon | -8/Materials | Scanalyzed Pulse Rifle | -8/Materials | Scanalyzed Hpw. Tractor Beam | -8/Materials | Scanalyzed Imp. Treads | -8/Materials | Scanalyzed Hyp. Gauss Rifle | -7/Factory | Hacked Imp. Particle Charger | -7/Factory | Hacked Arm. Treads | -7/Factory | Scanalyzed Mic. Nuclear Core | -7/Factory | Hacked Combat Drone Bay | -7/Data Miner | Free Lgt. Regenerative Plating | -7/Data Miner | Free Exp. Flexi-carbon Leg | -7/Data Miner | Free Exp. Terrain Scan Processor | -7/Data Miner | Free Tactical Coordination Suite | -7/Data Miner | Free Plasma Sword | -7/Data Miner | Free Kinetic Spear | -7/Data Miner | Free Cmb. Airjet | -6/Factory | Scanalyzed Lgt. Antimatter Reactor | -6/Factory | Hacked Lgt. Angular Momentum Engine | -6/Factory | Scanalyzed Hvy. Plasma Cannon | -6/Factory | Scanalyzed Proton Cannon | -6/Factory | Scanalyzed Imp. Heavy Treads | -4/Factory | Scanalyzed Imp. Gyrokinetic Inverter | -4/Factory | Scanalyzed Adv. Reaction Control System | -4/Factory | Hacked Robot Schematics ------------------ T-07 Excavator | -7/Factory | Hacked S-27 Virus | -7/Data Miner | Free G-50 Soldier | -7/Data Miner | Free L-41 Fighter | -7/Data Miner | Free H-66 Slayer | -7/Data Miner | Free P-70 Sage | -7/Data Miner | Free I-36 Angel | -7/Data Miner | Free G-67 Veteran | -4/Factory | Hacked Fabricated ------------ Hyp. Gauss Rifle | x2 | -7/Factory Arm. Treads | x2 | -6/Factory Lgt. Regenerative Plating | x1 | -6/Factory Cld. Ion Engine | x1 | -6/Factory Y-54 Guardian | x2 | -6/Factory | Preloaded Alien Tech Used ----------------- None Achievements -------------- 20k Club Achiever Dangerous Findings Explorer Just Browsing Main Advantage Ooh, Shiny! Prison Break Project G-00 Revising The Future True Hacker Challenges ------------ None Game ------ Seed NeutralizingFlightHumpback Manual? 0 Play Time 07:26:40 Cumulative 41.9 hours Start 2020.11.14 @ 10:57:38 End 2020.11.14 @ 22:11:37 Sessions 1 Manual Loads 0 Difficulty Explorer Special Mode Halloween2020/ForbiddenLore Game No. 32 Rogue 20 Adventurer 0 Explorer 12 Win Type - Total 0 Types 0/0/0/0/0/0/0/0/0 Lore% 23 Gallery% 30 Achievement% 26 Wizard Run 0 Options --------- ASCII 0 Keyboard 0 Movement Mouse Keybinds 0 Fullscreen 1 Font 18/X11Bold Map View 76x50 Tactical HUD 1 Map Filters NONE Filters NONE Steam 1 RUN: e54f9439-1774-4de6-9677-a9ddb5f53339